Cogmind - Beta 14 @@@ ROGUE MODE // 2025.01.12 @ 13:25:29 Player: Cart123 Result: Destroyed by D-53 Grenadier with Mini Grenade Launcher Performance ------------- Evolutions (0) 0 Regions Visited (0) 0 Robots Destroyed (2) 10 Value Destroyed (14) 14 Prototype IDs (0) 0 Alien Tech Used (0) 0 Bonus (0) 0 TOTAL SCORE: 24 Bonus ------- None Cogmind --------- Core Integrity 0/250 Matter 180/300 Energy 100/100 System Corruption 9% Temperature Warm (102) Movement Core (100) Ox1 Location -11/Scrapyard Parts ------- > --- POWER (1) -------- (None) > --- PROPULSION (2) --- (None) > --- UTILITY (2) ------ Small Storage Unit > --- WEAPON (2) ------- Light Assault Rifle > --- INVENTORY (8) ---- Ion Engine Peak State ------------ > --- POWER ------------ Light Ion Engine > --- PROPULSION ------- Aluminum Leg Aluminum Leg > --- UTILITY ---------- Small Storage Unit Improved Terrain Scanner > --- WEAPON ----------- EM Pulse Gun Light Assault Rifle > --- INVENTORY -------- Ion Engine [Rating: 9] Favorites ----------- Power Light Ion Engine Engine Light Ion Engine Propulsion Aluminum Leg Leg Aluminum Leg Utility Small Storage Unit Device Improved Terrain Scanner Storage Small Storage Unit Weapon EM Pulse Gun Energy Gun EM Pulse Gun Ballistic Gun Light Assault Rifle Special Weapon Mining Laser Build | -11 ------- Run | Yrd Slots Evolved . | . Power . | . Propulsion . | . Utility . | . Weapon . | . Parts Attached 10 | 10 Power 1 | 1 Engine 1 | 1 Core . | . Reactor . | . Propulsion 2 | 2 Treads . | . Leg 2 | 2 Wheel . | . Hover . | . Flight . | . Utility 2 | 2 Device 1 | 1 Storage 1 | 1 Processor . | . Hackware . | . Protection . | . Artifact . | . Weapon 5 | 5 Energy Gun 2 | 2 Energy Cannon . | . Ballistic Gun 2 | 2 Ballistic Cannon . | . Launcher . | . Special Weapon 1 | 1 Impact Weapon . | . Slashing Weapon . | . Piercing Weapon . | . Special Melee Weapon . | . Unidentified Prototypes . | . Parts Lost 7 | 7 Power 1 | 1 Propulsion 2 | 2 Utility 1 | 1 Weapon 3 | 3 Highest Loss Streak 5 | 5 To Critical Strikes . | . Average Slot Usage (%) . | . Peak Build Rating 9 | 9 Average Rating 7 | 7 On Entrance . | . Naked Turns . | . Heaviest Build 12 | 12 Greatest Support 20 | 20 Greatest Overweight (x) . | . Average Overweight (x) . | . Largest Inventory Capacity 8 | 8 Average Capacity 7 | 7 Most Carried 5 | 5 Average Carried 1 | 1 Final Capacity 8 | 8 Final Carried 1 | 1 Class Distribution -------------------- None Dominant Class ---------------- None Resources | -11 ----------- Run | Yrd Matter Collected 214 | 214 Remotely . | . Salvage Created 58 | 58 Parts 6 | 6 Haulers Intercepted . | . Recyclers Shooed . | . Parts Field Recycled . | . Retrieved Matter . | . Parts Self-Destructed . | . Prevented . | . Kills | -11 ------- Run | Yrd Combat Hostiles Destroyed . | . Classes Destroyed 1 | 1 Tunneler 2 | 2 Best Kill Streak 1 | 1 Combat Bots Only . | . Max Kills in Single Turn 1 | 1 Gunslinging . | . Exploded . | . Melee . | . Uniques/NPCs Destroyed . | . Combat | -11 -------- Run | Yrd Hostile Shots Fired 14 | 14 Missed 1 | 1 Damage Taken 827 | 827 Core 258 | 258 Absorbed by Shields . | . Core Remaining (%) . | . Volleys Fired 33 | 33 Largest 2 | 2 Hottest 100 | 100 Shots Fired 34 | 34 Gun 17 | 17 Cannon . | . Launcher . | . Special 17 | 17 Kinetic 7 | 7 Thermal 17 | 17 Explosive . | . Electromagnetic 10 | 10 Robot Hit Streak 3 | 3 Robot Miss Streak 1 | 1 Penetration Max . | . Secondary Targets . | . Shots Hit Robots 11 | 11 Core Hits 4 | 4 Critical Kills . | . Critical Parts Destroyed . | . Critical Strikes 1 | 1 Destroy 1 | 1 Melee Attacks . | . Impact . | . Slashing . | . Piercing . | . Sneak Attacks . | . Combat Hostiles . | . Follow-up Attacks . | . Damage Inflicted 239 | 239 Guns 123 | 123 Cannons . | . Explosions 109 | 109 Melee . | . Ramming 7 | 7 Kinetic 51 | 51 Thermal 109 | 109 Explosive . | . Electromagnetic 72 | 72 Impact . | . Slashing . | . Piercing . | . Highest Corruption 9 | 9 Average Corruption 6 | 6 Corruption Purged . | . Corruption Blocked . | . Effects 29 | 29 Message Errors 6 | 6 Matter Fused 9 | 9 Heat Flow Errors 4 | 4 Energy Discharges 3 | 3 Data Loss (minor) 3 | 3 Data Loss (major) 3 | 3 Weapon Failures 1 | 1 Overload Shots . | . Overflow Damage . | . Projectiles . | . Explosions . | . Melee . | . Knockbacks . | . Impact . | . Kinetic . | . Secondary . | . Self-Inflicted Damage . | . Shots . | . Rammed . | . Targets Rammed 1 | 1 Kicked 1 | 1 Crushed . | . Highest Temperature 274 | 274 Average Temperature 73 | 73 Received Heat Transfer . | . Siege Activations . | . Robots Corrupted . | . Combat Hostiles . | . Parts Fried . | . Impact Corruptions . | . Robots Melted . | . Combat Hostiles . | . Parts Melted . | . Heat Transferred 100 | 100 Parts Sabotaged . | . Parts Stolen . | . Parts Stripped . | . Power Chain Reactions 1 | 1 Alert | -11 ------- Run | Yrd Peak Influence 5 | 5 Initial . | . Average . | . Maximum Alert Level . | . Low Security (%) 100 | 100 Level 1 . | . Level 2 . | . Level 3 . | . Level 4 . | . Level 5 . | . High Security . | . Max Security . | . Squads Dispatched . | . Investigation . | . Extermination . | . Reinforcement . | . Assault . | . Garrison . | . Intercept . | . Searches Triggered . | . Construction Impeded . | . Haulers Reinforced . | . Active Scanning Responses . | . Cargo Convoy Interrupts . | . Stealth | -11 --------- Run | Yrd Distress Signals . | . Communications Jammed . | . Distress Signals . | . Times Spotted 2 | 2 Peak Tracking Total 2 | 2 Tactical Retreats . | . Traps | -11 ------- Run | Yrd Traps Triggered . | . Indirectly . | . Trap Hack Attempts . | . Triggered . | . Disarmed . | . Reprogrammed . | . Reused . | . Traps Extracted . | . Installed . | . Triggered . | . Machines | -11 ---------- Run | Yrd Machines Disabled . | . Max in Single Turn . | . Machines Repaired . | . Machines Dismantled . | . Machines Sabotaged . | . Overloaded Fab Kills . | . Hacking | -11 --------- Run | Yrd Machines Accessed . | . Terminals . | . Fabricators . | . Repair Stations . | . Recycling Units . | . Scanalyzers . | . Garrison Access . | . Total Hacks . | . Successful . | . Failed . | . Catastrophic . | . Database Lockouts . | . Manual . | . Terminals . | . Fabricators . | . Repair Stations . | . Recycling Units . | . Scanalyzers . | . Garrison Access . | . Terminal Hacks . | . Fabricator Hacks . | . Repair Station Hacks . | . Recycling Unit Hacks . | . Scanalyzer . | . Garrison Access Hacks . | . Unauthorized Hacks . | . Terminals . | . Fabricators . | . Repair Stations . | . Recycling Units . | . Scanalyzers . | . Garrison Access . | . Data Cores Recovered . | . Used . | . Hacking Detections . | . Full Trace Events . | . Feedback Events . | . Feedback Blocked . | . Robot Schematics Acquired . | . Robots Built . | . Authchips . | . Time . | . Total Robot Build Rating . | . Part Schematics Acquired . | . Parts Built . | . Authchips . | . Time . | . Total Part Build Rating . | . Parts Repaired . | . Time . | . Parts Recycled . | . Recycled Matter . | . Retrieved Matter . | . Retrieved Components . | . Parts Scanalyzed . | . Part Schematics Acquired . | . Parts Damaged . | . Bothacking | -11 ------------ Run | Yrd Used RIF Installer . | . Robots Hacked . | . Non-combat . | . Combat . | . Robot Hacks Applied . | . Relay Couplers Released . | . Fabnet Peak Effective % . | . Robots Rewired . | . Allies Hacked . | . Hacks Repelled . | . Allies | -11 -------- Run | Yrd Total Allies . | . Largest Group . | . Highest-Rated Group . | . Highest-Rated Ally . | . Total Orders . | . Ally Attacks . | . Total Damage . | . Kills . | . Allies Corrupted . | . Allies Melted . | . Intel | -11 ------- Run | Yrd Robot Analysis Total . | . Derelict Logs Recovered . | . Drone Launches . | . Drone Recoveries . | . Exploration | -11 ------------- Run | Yrd Turns Passed 2096 | 2096 Spaces Moved 231 | 231 Core 23 | 23 Treads . | . Legs 208 | 208 Wheels . | . Hover . | . Flight . | . Fastest Speed 50 | 50 Average Speed 113 | 113 Slowest Speed 120 | 120 Overloaded Moves . | . Propulsion Burnouts . | . Robots Hopped . | . Cave-ins Triggered 2 | 2 Exploration Rate (%) 33 | 33 Regions Visited . Branch Regions . Pre-discovered Areas . | . Known Exits Taken . | . Unknown Exits Taken . | . Scrap Searched . | . Spaces Dug 16 | 16 Terrain Destroyed 21 | 21 Melee . | . Projectile 16 | 16 AOE 5 | 5 Terrain Rammed . | . Walls Destroyed . | . Machines Disabled . | . Actions | -11 --------- Run | Yrd Total 1998 | 1998 Wait 1714 | 1714 Move 231 | 231 Hop . | . Pick Up 9 | 9 Fast Attach 1 | 1 Attach 8 | 8 Detach . | . Swap 1 | 1 Drop . | . Fire 33 | 33 Melee . | . Ram . | . Kick 1 | 1 Crush . | . Escape Stasis . | . Rewire . | . Trap . | . Miscellaneous . | . Route ------- -11/Scrapyard (discovered 1 exit: [*Mat]) History --------- Turn | Location | Event 4 | -11/Scrapyard | Discovered new exit (range 16) 883 | -11/Scrapyard | Crushed by falling debris 2072 | -11/Scrapyard | Assembled infested the area 2087 | -11/Scrapyard | Crushed by falling debris 2092 | -11/Scrapyard | Core integrity fell below 50% 2096 | -11/Scrapyard | Core integrity fell below 20% 2097 | -11/Scrapyard | Destroyed by D-53 Grenadier with Mini Grenade Launcher Last Messages --------------- T-07 Excavator destroyed. Aluminum Leg destroyed. The unstable cave ceiling collapses. System corrupted: Heat flow error (+222). Chain reaction triggered in Lgt. Deuterium Engine. Destroyed Mni. Grenade Launcher. EM Pulse Gun destroyed. The unstable cave ceiling collapses. Crushed by falling debris. Imp. Terrain Scanner destroyed. System corrupted by crushing effect (+3). The unstable cave ceiling collapses. R-06 Scavenger destroyed. The unstable cave ceiling collapses. D-53 Grenadier suffers critical hit (Destroy). The unstable cave ceiling collapses. System corrupted: Lgt. Assault Rifle jammed. The unstable cave ceiling collapses. Lgt. Ion Engine destroyed. Map ----- +----------------------------------------------------+ | ????????????#????#????????# #???????????????? | | ???????????????????#????#?# #??#????????????? | | ????????????????????#???#?# #??????#????????? | | ????????##????????????????# ###?????????????? | | ????????????#???#??????#??# # ##????????????? | | ????????#???????#####?????# #????????????? | | ????????????#??### #?????# # #????????????? | | ???????????????# # #?????# # #???######???? | | ????? ? ? ???## ###?#### # #? #???? | | ????? ????# # #??##?# # #?? #???? | | ???? ##### ########### ### #? #???? | | ???? #? #???? | | ???? # ##### | | ???? # ## | | ????# ## | | ????# # ## | | ????? # ## | | ????? ############### ########### | | ?????? ############## ###?#??# | | ?????? # # #??????? | | ?????? # ########## | | ??????? # * # | | | ??????? = % !% | | ????????### ! % ### ####### | | ??????????# ## ### = d < # ????? | | ??????????# ? # = @ # ??? | | ??????????? # ### # ?? | | ???????????? #### ##?#####?# # | | ??????????? #### ?##?#### # | | ???????????? ##?# ####### # | | ???????????? ? ?#?## #####?# # | | ?????????????#?###### # ####??# # | | ??????????????#?##### # ###?############# | | ??????????????#??##?# # #?####??????????? | | ???????????????#?#### ?# #?###???????????? | | ???????????????? ? #t # #???????????????? | | ?????????????????? ?# #############?????????????? | | ??????????????????? ? ??##?##???????????????????? | | ????????????????????? ??#?###??#?????????????????? | | ?????????????????????????????????????????????????? | | ?????????????????????????????????????????????????? | | ?????????????????????????????????????????????????? | | ?????????????????????????????????????????????????? | | ?????????????????????????????????????????????????? | | ?????????????????????????????????????????????????? | | ?????????????????????????????????????????????????? | | ?????????????????????????????????????????????????? | | ?????????????????????????????????????????????????? | | ?????????????????????????????????????????????????? | | ?????????????????????????????????????????????????? | +----------------------------------------------------+ Best States ------------- Heat Dissipation 25 Energy Generation 10 Energy Capacity 125 Matter Stores 242 Matter Capacity 300 Sight Range 16 Terrain Scan Range 16 Terrain Scan Density 10 Evasion (%) 55 Item Schematics ----------------- None Robot Schematics ------------------ None Fabricated ------------ Nothing Alien Tech Used ----------------- None Achievements -------------- Curiosity Killed The Cat Unlikely Earthworm Challenges ------------ None Game ------ Seed ScrapoidGravitonPendant Manual? 0 Play Time 00:12:42 Cumulative 2.4 hours Start 2025.01.12 @ 13:18:44 End 2025.01.12 @ 13:25:29 Sessions 0 Manual Loads 0 Difficulty Rogue Special Mode None Game No. 5 Rogue 5 Adventurer 0 Explorer 0 Win Type - Total 0 Types 0/0/0/0/0/0/0/0/0 Lore% 0 Gallery% 5 Achievement% 7 Wizard Run 0 Options --------- Layout 1 ASCII 0 Keyboard 0 Movement Arrows Keybinds 0 Fullscreen 2 Font 24/Smallcaps Map View 50x35 Zoom Use 0% Tactical HUD 0 Map Filters NONE Filters NONE Steam 1 RUN: 81e1c01f-88a4-4b1b-a98b-a93a11d21159